fUST/lending_fUST_20250105
["ID","MTS","AMOUNT","RATE_DAILY","PERIOD"]
[347733891,1736087155448,-500.0,0.00019998,3]
[347733892,1736087155469,-341.73710999,0.00019998,3]
[347733893,1736087155491,-500.0,0.00019998,3]
[347733894,1736087155515,-500.0,0.00019998,3]
[347733895,1736087155535,-501.68320481,0.00019998,3]
[347733896,1736087155557,-500.0,0.00019998,3]
[347733897,1736087155577,-502.65029824,0.00019998,3]
[347733898,1736087155600,-500.0,0.00019998,3]
[347733899,1736087155622,-500.0,0.00019998,3]
[347733900,1736087155642,-501.29007956,0.00019998,3]
[347733901,1736087155663,-500.0,0.00019998,3]
[347733902,1736087155685,-500.0,0.00019998,3]
[347733903,1736087155706,-500.0,0.00019998,3]
[347733904,1736087155728,-500.0,0.00019998,3]
[347733905,1736087155749,-500.0,0.00019998,3]
[347733906,1736087155769,-500.0,0.00019998,3]
[347733907,1736087155791,-500.0,0.00019998,3]
[347733908,1736087155812,-500.0,0.00019998,3]
[347733909,1736087155834,-591.7,0.00019998,3]
[347733910,1736087155855,-522.93,0.00019998,3]
[347733911,1736087155876,-500.0,0.00019998,3]
[347733912,1736087155897,-500.0,0.00019998,3]
[347733913,1736087155918,-503.43312553,0.00019998,3]
[347733914,1736087155939,-501.7911013,0.00019998,3]
[347733915,1736087155960,-500.0,0.00019998,3]
[347733916,1736087155982,-500.0,0.00019998,3]
[347733917,1736087156003,-500.74496078,0.00019998,3]
[347733918,1736087156026,-500.0,0.00019998,3]
[347733919,1736087156046,-500.0,0.00019998,3]
[347733920,1736087156068,-500.0,0.00019998,3]
[347733921,1736087156093,-500.0,0.00019998,3]
[347733922,1736087156115,-500.0,0.00019998,3]
[347733923,1736087156135,-500.0,0.00019998,3]
[347733924,1736087156156,-500.0,0.00019998,3]
[347733925,1736087156176,-503.60880248,0.00019998,3]
[347733926,1736087156196,-500.0,0.00019998,3]
[347733927,1736087156218,-500.0,0.00019998,3]
[347733928,1736087156238,-500.0,0.00019998,3]
[347733929,1736087156259,-500.0,0.00019998,3]
[347733930,1736087156279,-500.0,0.00019998,3]
[347733931,1736087156299,-500.0,0.00019998,3]
[347733932,1736087156321,-500.0,0.00019998,3]
[347733933,1736087156344,-500.0,0.00019998,3]
[347733934,1736087156365,-500.0,0.00019998,3]
[347733935,1736087156387,-500.0,0.00019998,3]
[347733936,1736087156408,-500.0,0.00019998,3]
[347733937,1736087156430,-500.0,0.00019998,3]
[347733938,1736087156451,-500.0,0.00019998,3]
[347733939,1736087156473,-500.0,0.00019998,3]
[347733940,1736087156494,-500.0,0.00019998,3]
[347733941,1736087156518,-500.0,0.00019998,3]
[347733942,1736087156542,-2420.93,0.00019998,3]
[347733943,1736087156563,-500.0,0.00019998,3]
[347733944,1736087156584,-500.0,0.00019998,3]
[347733945,1736087156607,-500.0,0.00019998,3]
[347733946,1736087156627,-500.0,0.00019998,3]
[347733947,1736087156649,-500.0,0.00019998,3]
[347733948,1736087156670,-500.0,0.00019998,3]
[347733949,1736087156691,-500.0,0.00019998,3]
[347733950,1736087156712,-500.0,0.00019998,3]
[347733951,1736087156734,-500.0,0.00019998,3]
[347733952,1736087156753,-500.0,0.00019999,3]
[347733953,1736087156774,-500.0,0.00019999,3]
[347733954,1736087156795,-416.1784102,0.00019999,3]
[347733955,1736087156815,-500.0,0.00019999,3]
[347733956,1736087156839,-502.58512986,0.00019999,3]
[347733957,1736087156861,-500.0,0.00019999,3]
[347733958,1736087156883,-506.07222546,0.00019999,3]
[347733959,1736087156904,-500.0,0.00019999,3]
[347733960,1736087156925,-504.47675516,0.00019999,3]
[347733961,1736087156947,-500.0,0.00019999,3]
[347733962,1736087156967,-500.0,0.00019999,3]
[347733963,1736087156989,-500.56904502,0.00019999,3]
[347733964,1736087157009,-500.97159768,0.00019999,3]
[347733965,1736087157030,-500.71355037,0.00019999,3]
[347733966,1736087157051,-497.4566339,0.00019999,3]
[347733967,1736087157072,-500.0,0.00019999,3]
[347733968,1736087157094,-505.15366282,0.00019999,3]
[347733969,1736087157116,-500.0,0.00019999,3]
[347733970,1736087157138,-501.56328064,0.00019999,3]
[347733971,1736087157159,-500.0,0.00019999,3]
[347733972,1736087157180,-500.0,0.00019999,3]
[347733973,1736087157203,-500.50276361,0.00019999,3]
[347733974,1736087157224,-500.0,0.00019999,3]
[347733975,1736087157246,-500.0,0.00019999,3]
[347733976,1736087157267,-451.53564724,0.00019999,3]
[347733977,1736087157290,-500.0,0.00019999,3]
[347733978,1736087157311,-500.0,0.00019999,3]
[347733979,1736087157334,-500.0,0.00019999,3]
[347733980,1736087157357,-500.0,0.00019999,3]
[347733981,1736087157379,-500.0,0.00019999,3]
[347733982,1736087157400,-500.0,0.00019999,3]
[347733983,1736087157421,-500.83998701,0.00019999,3]
[347733984,1736087157442,-500.0,0.00019999,3]
[347733985,1736087157461,-500.0,0.00019999,3]
[347733986,1736087157482,-318.48030594,0.00019999,3]
[347733987,1736087157502,-500.0,0.00019999,3]
[347733988,1736087157527,-500.0,0.00019999,3]
[347733989,1736087157548,-500.0,0.00019999,3]
[347733990,1736087157569,-500.0,0.00019999,3]
[347733991,1736087157591,-500.0,0.00019999,3]
[347733992,1736087157612,-500.0,0.00019999,3]
[347733993,1736087157634,-500.0,0.00019999,3]
[347733994,1736087157655,-501.46159117,0.00019999,3]
[347733995,1736087157675,-500.0,0.00019999,3]
[347733996,1736087157697,-500.0,0.00019999,3]
[347733997,1736087157719,-503.61678294,0.00019999,3]
[347733998,1736087157740,-500.0,0.00019999,3]
[347733999,1736087157762,-501.03806118,0.00019999,3]
[347734000,1736087157783,-501.49919467,0.00019999,3]
[347734001,1736087157804,-500.0,0.00019999,3]
[347734002,1736087157826,-504.3761097,0.00019999,3]
[347734003,1736087157849,-500.0,0.00019999,3]
[347734004,1736087157962,-500.0,0.00019999,3]
[347734005,1736087157987,-420.06644538,0.00019999,3]
[347734006,1736087158009,-504.47272945,0.00019999,3]
[347734007,1736087158029,-501.65113543,0.00019999,3]
[347734008,1736087158049,-501.38530224,0.00019999,3]
[347734009,1736087158070,-500.0,0.00019999,3]
[347734010,1736087158092,-157.56618206,0.00019999,3]
[347734011,1736087158114,-502.04826423,0.00019999,3]
[347734012,1736087158134,-501.99554715,0.00019999,3]
[347734013,1736087158156,-500.0,0.00019999,3]
[347734014,1736087158182,-500.0,0.00019999,3]
[347734015,1736087158203,-500.0,0.00019999,3]
[347734016,1736087158224,-500.0,0.00019999,3]
[347734017,1736087158244,-502.68797946,0.00019999,3]
[347734018,1736087158264,-501.08889369,0.00019999,3]
[347734019,1736087158284,-500.68782716,0.00019999,3]
[347734020,1736087158304,-500.0,0.00019999,3]
[347734021,1736087158325,-500.0,0.00019999,3]
[347734022,1736087158348,-500.0,0.00019999,3]
[347734023,1736087158368,-253.3163128,0.00019999,3]
[347734024,1736087158388,-500.8956134,0.00019999,3]
[347734025,1736087158410,-579.01,0.00019999,3]
[347734026,1736087158430,-500.81290536,0.00019999,3]
[347734027,1736087158450,-500.0,0.00019999,3]
[347734028,1736087158470,-540.59537312,0.00019999,3]
[347734029,1736087158491,-500.0,0.00019999,3]
[347734030,1736087158511,-228.40318252,0.00019999,2]
[347734031,1736087158534,-501.02017262,0.00019999,3]
[347734032,1736087158554,-502.6463709,0.00019999,3]
[347734033,1736087158576,-500.0,0.00019999,3]
[347734034,1736087158598,-1000.0,0.00019999,3]
[347734035,1736087158619,-500.0,0.00019999,3]
[347734036,1736087158639,-500.0,0.00019999,3]
[347734037,1736087158659,-501.13424217,0.00019999,3]
[347734038,1736087158678,-502.28697163,0.00019999,3]
[347734039,1736087158698,-501.62229646,0.00019999,3]
[347734040,1736087158719,-500.0,0.00019999,3]
[347734041,1736087158739,-500.0,0.00019999,3]
[347734042,1736087158761,-500.0,0.00019999,3]
[347734043,1736087158780,-501.37310538,0.00019999,3]
[347734044,1736087158800,-501.13538423,0.00019999,3]
[347734045,1736087158822,-500.0,0.00019999,3]
[347734046,1736087158843,-500.0,0.00019999,3]
[347734047,1736087158863,-572.35857608,0.00019999,3]
[347734048,1736087158884,-503.66530252,0.00019999,3]
[347734049,1736087158904,-500.6816762,0.00019999,3]
[347734050,1736087158925,-500.0,0.00019999,3]
[347734051,1736087158945,-500.0,0.00019999,3]
[347734052,1736087158965,-500.0,0.00019999,3]
[347734053,1736087158986,-500.0,0.00019999,3]
[347734054,1736087159007,-500.0,0.00019999,3]
[347734055,1736087159027,-501.18392568,0.00019999,3]
[347734056,1736087159048,-500.51051112,0.00019999,3]
[347734057,1736087159068,-633.87,0.00019999,3]
[347734058,1736087159090,-500.0,0.00019999,3]
[347734059,1736087159110,-500.0,0.00019999,3]
[347734060,1736087159131,-500.0,0.00019999,3]
[347734061,1736087159153,-418.77589836,0.00019999,3]
[347734062,1736087159174,-504.1830346,0.00019999,3]
[347734063,1736087159195,-527.13122536,0.00019999,3]
[347734064,1736087159216,-500.45036042,0.00019999,3]
[347734065,1736087159237,-500.0,0.00019999,3]
[347734066,1736087159258,-500.0,0.00019999,3]
[347734067,1736087159278,-500.0,0.00019999,3]
[347734068,1736087159299,-500.0,0.00019999,3]
[347734069,1736087159320,-500.0,0.00019999,3]
[347734070,1736087159342,-500.0,0.00019999,3]
[347734071,1736087159364,-500.0,0.00019999,3]
[347734072,1736087159385,-500.0,0.00019999,3]
[347734073,1736087159405,-500.0,0.00019999,3]
[347734074,1736087159426,-500.0,0.00019999,3]
[347734075,1736087159446,-500.0,0.00019999,3]
[347734076,1736087159466,-500.0,0.00019999,3]
[347734077,1736087159486,-500.0,0.00019999,3]
[347734078,1736087159506,-500.0,0.00019999,3]
[347734079,1736087159529,-500.0,0.00019999,3]
[347734080,1736087159549,-224.0490745,0.00019999,3]
[347734081,1736087159570,-500.0,0.00019999,3]
[347734082,1736087159594,-500.0,0.00019999,3]
[347734083,1736087159614,-502.32291445,0.00019999,3]
[347734084,1736087159634,-506.40243703,0.00019999,3]
[347734085,1736087159658,-541.98591658,0.00019999,3]
[347734086,1736087159680,-500.0,0.00019999,3]
[347734087,1736087159702,-500.67716182,0.00019999,3]
[347734088,1736087159724,-500.0,0.00019999,3]
[347734089,1736087159745,-500.0,0.00019999,3]
[347734090,1736087159766,-500.75488818,0.00019999,3]
[347734091,1736087159787,-500.0,0.00019999,3]
[347734092,1736087159808,-500.9559727,0.00019999,3]
[347734093,1736087159830,-500.0,0.00019999,3]
[347734094,1736087159853,-500.0,0.00019999,3]
[347734095,1736087159874,-602.5367501,0.00019999,3]
[347734096,1736087159895,-500.0,0.00019999,3]
[347734097,1736087159917,-248.93,0.00019999,3]
[347734098,1736087159938,-500.0,0.00019999,3]
[347734099,1736087159959,-500.0,0.00019999,3]
[347734100,1736087159981,-500.0,0.00019999,3]
[347734101,1736087160003,-408.67,0.00019999,3]
[347734102,1736087160027,-756.9,0.0002,3]
[347734103,1736087160048,-400.0,0.0002027,2]
[347734104,1736087160071,-500.0,0.00020271,3]
[347734105,1736087160095,-157.67,0.00020271,3]
[347734106,1736087160118,-500.0,0.00020271,3]
[347734107,1736087160143,-278.46,0.00020271,3]
[347734108,1736087160166,-500.0,0.00020271,3]
[347734109,1736087160189,-500.0,0.00020271,3]
[347734110,1736087160210,-607.66,0.00020271,3]
[347734111,1736087160234,-500.0,0.00020271,3]
[347734112,1736087160257,-500.0,0.00020271,3]
[347734113,1736087160279,-500.0,0.00020271,3]
[347734114,1736087160300,-500.0,0.00020271,3]
[347734115,1736087160322,-500.0,0.00020271,3]
[347734116,1736087160346,-500.0,0.00020271,3]
[347734117,1736087160367,-500.0,0.00020271,3]
[347734118,1736087160387,-500.0,0.00020271,3]
[347734119,1736087160408,-500.0,0.00020272,3]
[347734120,1736087160429,-500.0,0.00020272,3]
[347734121,1736087160450,-172.33,0.00020272,3]
[347734122,1736087160471,-394.3,0.00020272,3]
[347734123,1736087160494,-500.0,0.00020272,3]
[347734124,1736087160515,-500.0,0.00020272,3]
[347734125,1736087160543,-500.0,0.00020272,3]
[347734126,1736087160566,-500.0,0.00020272,3]
[347734127,1736087160589,-500.0,0.00020272,3]
[347734128,1736087160613,-500.0,0.00020272,3]
[347734129,1736087160634,-500.0,0.00020272,3]
[347734130,1736087160656,-307.71,0.00020272,3]
[347734131,1736087160677,-500.0,0.00020272,3]
[347734132,1736087160796,-370.61,0.00020272,3]
[347734133,1736087160819,-159.87,0.00020272,3]
[347734134,1736087160843,-500.0,0.00020272,3]
[347734135,1736087160866,-500.0,0.00020272,3]
[347734136,1736087160889,-500.0,0.00020272,3]
[347734137,1736087160911,-500.0,0.00020272,3]
[347734138,1736087160933,-500.0,0.00020272,3]
[347734139,1736087160954,-500.0,0.00020272,3]
[347734140,1736087160975,-500.0,0.00020272,3]
[347734141,1736087160996,-248.35,0.00020272,3]
[347734142,1736087161018,-2420.93,0.00020272,3]
[347734143,1736087161041,-756.9,0.00020273,3]
[347734144,1736087161064,-500.0,0.00020273,3]
[347734145,1736087161087,-500.0,0.00020273,3]
[347734146,1736087161110,-439.96,0.00020273,3]
[347734147,1736087161133,-233.19402,0.00020447,2]
[347734148,1736087161155,-500.0,0.00020521,2]
[347734149,1736087161176,-482.98,0.00020545,3]
[347734150,1736087161198,-313.2,0.00020545,3]
[347734151,1736087161220,-279.26,0.00020545,3]
[347734152,1736087161243,-500.0,0.00020545,3]
[347734153,1736087161267,-500.0,0.00020545,3]
[347734154,1736087161291,-500.0,0.00020545,3]
[347734155,1736087161316,-382.92,0.00020545,3]
[347734156,1736087161341,-500.0,0.00020545,3]
[347734157,1736087161363,-500.0,0.00020545,3]
[347734158,1736087161388,-500.0,0.00020546,3]
[347734159,1736087161411,-219.16,0.00020546,3]
[347734160,1736087161435,-500.0,0.00020546,3]
[347734161,1736087161459,-317.16,0.00020546,3]
[347734162,1736087161484,-601.29,0.00020546,3]
[347734163,1736087161507,-500.0,0.00020546,3]
[347734164,1736087161534,-446.29,0.00020546,3]
[347734165,1736087161556,-322.65,0.00020546,3]
[347734166,1736087161580,-380.85,0.00020546,3]
[347734167,1736087161602,-155.63,0.00020546,3]
[347734168,1736087161626,-606.52,0.00020546,3]
[347734169,1736087161648,-2420.93,0.00020546,3]
[347734170,1736087161673,-756.9,0.00020547,3]
[347734171,1736087161697,-500.0,0.00020547,3]
[347734172,1736087161720,-500.0,0.00020547,3]
[347734173,1736087161743,-153.0,0.00020583,2]
[347734174,1736087161765,-153.0,0.00020583,2]
[347734175,1736087161787,-153.0,0.00020583,2]
[347734176,1736087161808,-153.0,0.00020583,2]
[347734177,1736087161831,-153.0,0.00020583,2]
[347734178,1736087161854,-153.0,0.00020583,2]
[347734179,1736087161877,-153.0,0.00020583,2]
[347734180,1736087161899,-153.0,0.00020583,2]
[347734181,1736087161920,-153.0,0.00020583,2]
[347734182,1736087161942,-153.0,0.00020583,2]
[347734183,1736087161963,-153.0,0.00020583,2]
[347734184,1736087161984,-153.0,0.00020583,2]
[347734185,1736087162005,-153.0,0.00020583,2]
[347734186,1736087162026,-153.0,0.00020583,2]
[347734187,1736087162047,-153.0,0.00020583,2]
[347734188,1736087162068,-153.0,0.00020583,2]
[347734189,1736087162091,-153.0,0.00020583,2]
[347734190,1736087162111,-153.0,0.00020583,2]
[347734191,1736087162133,-153.0,0.00020583,2]
[347734192,1736087162154,-153.0,0.00020583,2]
[347734193,1736087162176,-153.0,0.00020583,2]
[347734194,1736087162197,-153.0,0.00020583,2]
[347734195,1736087162219,-153.0,0.00020583,2]
[347734196,1736087162241,-153.0,0.00020583,2]
[347734197,1736087162263,-153.0,0.00020583,2]
[347734198,1736087162286,-153.0,0.00020583,2]
[347734199,1736087162309,-153.0,0.00020583,2]
[347734200,1736087162330,-153.0,0.00020583,2]
[347734201,1736087162354,-153.0,0.00020583,2]
[347734202,1736087162377,-153.0,0.00020583,2]
[347734203,1736087162401,-153.0,0.00020583,2]
[347734204,1736087162423,-153.0,0.00020583,2]
[347734205,1736087162446,-153.0,0.00020583,2]
[347734206,1736087162469,-153.0,0.00020583,2]
[347734207,1736087162491,-153.0,0.00020583,2]
[347734208,1736087162514,-153.0,0.00020583,2]
[347734209,1736087162540,-153.0,0.00020583,2]
[347734210,1736087162563,-153.0,0.00020583,2]
[347734211,1736087162588,-150.0,0.00020722,2]
[347734212,1736087162610,-151.0,0.000208,4]
[347734213,1736087162634,-500.0,0.00020819,3]
[347734214,1736087162658,-500.0,0.00020819,3]
[347734215,1736087162681,-500.0,0.00020819,3]
[347734216,1736087162707,-500.0,0.00020819,3]
[347734217,1736087162730,-500.0,0.00020819,3]
[347734218,1736087162753,-219.28,0.0002082,3]
[347734219,1736087162777,-500.0,0.0002082,3]
[347734220,1736087162801,-500.0,0.0002082,3]
[347734221,1736087162823,-212.54,0.0002082,3]
[347734222,1736087162849,-500.0,0.0002082,3]
[347734223,1736087162874,-500.0,0.0002082,3]
[347734224,1736087162898,-2420.93,0.0002082,3]
[347734225,1736087162923,-756.9,0.00020821,3]
[347734226,1736087162948,-500.0,0.00020821,3]
[347734227,1736087162973,-500.0,0.00020821,3]
[347734228,1736087162997,-420.0,0.00020899,2]
[347734229,1736087163019,-150.0,0.00021067,2]
[347734230,1736087163043,-534.0,0.00021067,2]
[347734231,1736087163066,-2038.0,0.00021067,2]
[347734232,1736087163090,-2321.0,0.00021067,2]
[347734233,1736087163114,-394.0,0.00021067,2]
[347734234,1736087163139,-500.0,0.00021093,3]
[347734235,1736087163166,-500.0,0.00021093,3]
[347734236,1736087163192,-500.0,0.00021093,3]
[347734237,1736087163217,-500.0,0.00021093,3]
[347734238,1736087163241,-571.48,0.00021093,3]
[347734239,1736087163265,-181.26,0.00021093,3]
[347734240,1736087163289,-500.0,0.00021094,3]
[347734241,1736087163313,-2420.93,0.00021094,3]
[347734242,1736087163338,-756.9,0.00021095,3]
[347734243,1736087163364,-326.44,0.00021095,3]
[347734244,1736087163389,-500.0,0.00021095,3]
[347734245,1736087163413,-151.0,0.000211,3]
[347734246,1736087163438,-500.0,0.00021367,3]
[347734247,1736087163464,-500.0,0.00021367,3]
[347734248,1736087163489,-500.0,0.00021367,3]
[347734249,1736087163513,-204.78,0.00021368,3]
[347734250,1736087163540,-2420.93,0.00021368,3]
[347734251,1736087163566,-756.9,0.00021369,3]
[347734252,1736087163592,-500.0,0.00021369,3]
[347734253,1736087163690,-151.0,0.000214,4]
[347734254,1736087163733,-500.0,0.00021641,3]
[347734255,1736087163758,-500.0,0.00021641,3]
[347734256,1736087163782,-343.96,0.00021641,3]
[347734257,1736087163806,-2420.93,0.00021642,3]
[347734258,1736087163833,-756.9,0.00021643,3]
[347734259,1736087163859,-500.0,0.00021643,3]
[347734260,1736087163884,-446.756,0.0002168,2]
[347734261,1736087163910,-151.0,0.000217,3]
[347734262,1736087163936,-500.0,0.00021915,3]
[347734263,1736087163961,-500.0,0.00021915,3]
[347734264,1736087163986,-500.0,0.00021916,3]
[347734265,1736087164010,-2420.93,0.00021916,3]
[347734266,1736087164039,-756.9,0.00021917,3]
[347734267,1736087164066,-500.0,0.00021917,3]
[347734268,1736087164091,-638.82,0.00021999,3]
[347734269,1736087164115,-151.0,0.00022,3]
[347734270,1736087164142,-500.0,0.00022189,3]
[347734271,1736087164167,-500.0,0.00022189,3]
[347734272,1736087164190,-2420.93,0.0002219,3]
[347734273,1736087164216,-756.9,0.00022191,3]
[347734274,1736087164240,-500.0,0.00022191,3]
[347734275,1736087164262,-151.0,0.000223,5]
[347734276,1736087164285,-500.0,0.00022463,3]
[347734277,1736087164307,-283.66,0.00022463,3]
[347734278,1736087164329,-2420.93,0.00022464,3]
[347734279,1736087164354,-756.9,0.00022465,3]
[347734280,1736087164377,-500.0,0.00022465,3]
[347734281,1736087164400,-151.0,0.000225,8]
[347734282,1736087164422,-9181.64664923,0.00022527,30]
[347734283,1736087164446,-491.74,0.00022561,3]
[347734284,1736087164468,-244.2410072,0.00022596,2]
[347734285,1736087164494,-153.26,0.000226,31]
[347734286,1736087164520,-153.26,0.000226,31]
[347734287,1736087164551,-153.26,0.000226,31]
[347734288,1736087164578,-153.26,0.000226,31]
[347734289,1736087164607,-153.26,0.000226,31]
[347734290,1736087164634,-153.26,0.000226,31]
[347734291,1736087164661,-153.26,0.000226,31]
[347734292,1736087164687,-153.26,0.000226,31]
[347734293,1736087164713,-153.26,0.000226,31]
[347734294,1736087164739,-153.26,0.000226,31]
[347734295,1736087164764,-153.26,0.000226,31]
[347734296,1736087164789,-153.26,0.000226,31]
[347734297,1736087164814,-153.26,0.000226,31]
[347734298,1736087164840,-153.26,0.000226,31]
[347734299,1736087164864,-10308.27214897,0.00022732,2]
[347734300,1736087164887,-500.90553921,0.00022736,3]
[347734301,1736087164911,-500.0,0.00022737,3]
[347734302,1736087164935,-2012.67374185,0.00022738,3]
[347734307,1736087237098,-638.94,0.00019178,2]
[347734308,1736087237121,-443.79,0.000192,2]
[347734309,1736087237146,-500.0,0.00019724,3]
[347734310,1736087237169,-500.0,0.00019724,3]
[347734311,1736087237193,-500.0,0.00019724,3]
[347734312,1736087237217,-500.0,0.00019725,3]
[347734313,1736087237239,-500.0,0.00019725,3]
[347734314,1736087237263,-500.0,0.00019725,3]
[347734315,1736087237284,-500.0,0.00019725,3]
[347734316,1736087237309,-500.0,0.00019725,3]
[347734317,1736087237330,-302.8788636,0.000198,2]
[347734319,1736087237354,-500.0,0.00019997,3]
[347734320,1736087237378,-500.0,0.00019997,3]
[347734321,1736087237402,-500.0,0.00019997,3]
[347734322,1736087237425,-500.0,0.00019997,3]
[347734323,1736087237446,-500.0,0.00019997,3]
[347734324,1736087237470,-500.0,0.00019997,3]
[347734325,1736087237493,-500.0,0.00019997,3]
[347734326,1736087237516,-500.0,0.00019997,3]
[347734327,1736087237538,-500.0,0.00019997,3]
[347734328,1736087237565,-607.69,0.00019997,3]
[347734329,1736087237587,-500.0,0.00019997,3]
[347734330,1736087237609,-517.69,0.00019997,3]
[347734331,1736087237631,-500.0,0.00019997,3]
[347734332,1736087237654,-500.0,0.00019997,3]
[347734333,1736087237676,-500.0,0.00019997,3]
[347734334,1736087237698,-500.0,0.00019997,3]
[347734335,1736087237724,-500.0,0.00019997,3]
[347734336,1736087237747,-500.0,0.00019997,3]
[347734337,1736087237770,-500.0,0.00019997,3]
[347734338,1736087237791,-500.0,0.00019997,3]
[347734339,1736087237816,-500.0,0.00019997,3]
[347734340,1736087237838,-500.0,0.00019997,3]
[347734341,1736087237859,-500.0,0.00019997,3]
[347734342,1736087237882,-500.0,0.00019997,3]
[347734343,1736087237903,-500.0,0.00019997,3]
[347734344,1736087237924,-500.0,0.00019998,3]
[347734345,1736087237947,-500.0,0.00019998,3]
[347734346,1736087237968,-605.48535411,0.00019998,4]
[347734347,1736087237990,-500.0,0.00019998,3]
[347734348,1736087238010,-500.0,0.00019998,3]
[347734349,1736087238032,-500.0,0.00019998,3]
[347734350,1736087238056,-547.34,0.00019998,3]
[347734351,1736087238079,-500.0,0.00019998,3]
[347734352,1736087238100,-500.0,0.00019998,3]
[347734353,1736087238121,-500.0,0.00019998,3]
[347734354,1736087238142,-502.37019304,0.00019998,3]
[347734355,1736087238165,-500.0,0.00019998,3]
[347734356,1736087238185,-500.0,0.00019998,3]
[347734357,1736087238207,-500.0,0.00019998,3]
[347734358,1736087238336,-500.0,0.00019998,3]
[347734359,1736087238359,-500.0,0.00019998,3]
[347734360,1736087238381,-500.0,0.00019998,3]
[347734361,1736087238406,-500.0,0.00019998,3]
[347734362,1736087238429,-500.76593469,0.00019998,3]
[347734363,1736087238451,-500.0,0.00019998,3]
[347734364,1736087238473,-500.0,0.00019998,3]
[347734365,1736087238495,-500.0,0.00019998,3]
[347734366,1736087238517,-500.0,0.00019998,3]
[347734367,1736087238540,-500.0,0.00019998,3]
[347734368,1736087238563,-500.0,0.00019998,3]
[347734369,1736087238586,-500.0,0.00019998,3]
[347734370,1736087238608,-500.0,0.00019998,3]
[347734371,1736087238630,-500.0,0.00019999,3]
[347734372,1736087238652,-500.0,0.00019999,3]
[347734373,1736087238674,-500.0,0.00019999,3]
[347734374,1736087238696,-500.0,0.00019999,3]
[347734375,1736087238719,-500.0,0.00019999,3]
[347734376,1736087238742,-452.72,0.00020271,3]
[347734377,1736087238765,-500.0,0.00020271,3]
[347734378,1736087238789,-500.0,0.00020271,3]
[347734379,1736087238812,-500.0,0.00020271,3]
[347734380,1736087238836,-500.0,0.00020271,3]
[347734381,1736087238859,-500.0,0.00020271,3]
[347734382,1736087238884,-500.0,0.00020271,3]
[347734383,1736087238907,-500.0,0.00020271,3]
[347734384,1736087238931,-500.0,0.00020271,3]
[347734385,1736087238954,-500.0,0.00020271,3]
[347734386,1736087238977,-500.0,0.00020271,3]
[347734387,1736087238998,-500.8573509,0.00020271,3]
[347734388,1736087239021,-500.0,0.00020545,3]
[347734389,1736087239044,-417.52,0.00020545,3]
[347734390,1736087239067,-500.0,0.00020545,3]
[347734391,1736087239089,-646.15,0.00020819,3]
[347734392,1736087239112,-285.81,0.00020819,3]
[347734393,1736087239135,-500.0,0.0002082,3]
[347734394,1736087239161,-500.0,0.00021094,3]
[347734395,1736087239184,-500.0,0.00021368,3]